bitfinex/quotes_SOLUSD_20241031
["timestamp","ask_amount","ask_price","bid_price","bid_amount"]
[1730345833319,70.0,175.13,175.12,5.7103]
[1730345833618,70.12549,175.13,175.12,5.7103]
[1730345834317,70.12549,175.13,175.12,10.03354036]
[1730345835420,70.0,175.15,175.12,15.74384036]
[1730345835630,70.0,175.15,175.14,10.03354036]
[1730345836123,70.0,175.15,175.13,10.03354036]
[1730345836710,0.12549,175.14,175.13,10.03354036]
[1730345837309,0.12549,175.14,175.13,15.74354036]
[1730345839119,0.12549,175.16,175.13,30.01864036]
[1730345839320,70.0,175.19,175.15,10.03354036]
[1730345839524,70.0,175.19,175.18,10.03354036]
[1730345839734,70.0,175.21,175.18,10.03354036]
[1730345839906,70.0,175.21,175.2,10.03354036]
[1730345840320,70.0,175.23,175.2,10.03354036]
[1730345840519,70.0,175.22,175.21,10.03354036]
[1730345841223,70.0,175.22,175.21,15.74094036]
[1730345841810,70.12549,175.22,175.21,5.7074]
[1730345842734,70.12549,175.22,175.21,15.74094036]
[1730345843730,70.12549,175.22,175.2,10.03354036]
[1730345843901,0.12549,175.21,175.2,10.03354036]
[1730345844939,0.12549,175.21,175.2,15.74124036]
[1730345845506,70.12549,175.2,175.19,30.01104036]
[1730345848029,70.0,175.22,175.19,30.01104036]
[1730345848227,70.12549,175.22,175.21,10.03354036]
[1730345849230,70.0,175.26,175.22,20.0]
[1730345849433,70.0,175.26,175.25,10.03354036]
[1730345849658,70.0,175.28,175.25,10.03354036]
[1730345849926,70.0,175.28,175.27,10.03354036]
[1730345850315,22.6589,175.29,175.26,10.03354036]
[1730345850316,70.0,175.27,175.26,10.03354036]
[1730345850513,70.0,175.26,175.24,14.2655]
[1730345850735,0.12549,175.25,175.24,14.2655]
[1730345851232,0.12549,175.23,175.22,10.03354036]
[1730345852237,0.12549,175.23,175.22,15.74064036]
[1730345860421,0.12549,175.23,175.22,5.7071]
[1730345860832,70.0,175.22,175.21,19.9758]
[1730345861040,70.12549,175.22,175.21,19.9758]
[1730345862345,70.12549,175.22,175.21,14.2685]
[1730345865430,70.0,175.19,175.17,10.03354036]
[1730345865635,0.12549,175.18,175.16,10.03354036]
[1730345866236,0.12549,175.18,175.17,10.03354036]
[1730345866635,0.12549,175.18,175.16,10.03354036]
[1730345866835,0.12549,175.18,175.17,5.7087]
[1730345867450,0.12549,175.18,175.17,15.74224036]
[1730345869034,0.12549,175.18,175.16,24.30584036]
[1730345870452,70.0,175.17,175.16,19.9813]
[1730345870648,70.12549,175.17,175.16,19.9813]
[1730345872133,70.12549,175.17,175.16,14.2723]
[1730345874753,70.12549,175.17,175.16,19.9813]
[1730345875533,0.12549,175.14,175.13,30.03354036]
[1730345876448,0.12549,175.14,175.13,10.03354036]
[1730345876657,0.12549,175.14,175.13,15.74354036]
[1730345876953,0.12549,175.14,175.13,5.71]
[1730345877155,0.12549,175.14,175.13,15.74354036]
[1730345880154,70.0,175.15,175.13,15.74354036]
[1730345880363,70.0,175.17,175.14,10.03354036]
[1730345880549,70.0,175.17,175.16,10.03354036]
[1730345881260,10.03354036,175.21,175.16,10.03354036]
[1730345881261,70.0,175.19,175.16,10.03354036]
[1730345881562,70.0,175.19,175.18,10.03354036]
[1730345882142,70.0,175.19,175.18,15.74194036]
[1730345882745,70.12549,175.19,175.18,15.74194036]
[1730345884275,70.0,175.21,175.18,30.01294036]
[1730345884445,70.0,175.23,175.2,10.03354036]
[1730345884640,70.0,175.25,175.22,10.03354036]
[1730345884838,70.0,175.25,175.24,10.03354036]
[1730345885658,70.0,175.25,175.23,10.03354036]
[1730345886170,0.12549,175.22,175.21,30.00914036]
[1730345886866,0.12549,175.22,175.21,19.9756]
[1730345887068,0.12549,175.22,175.21,14.2682]
[1730345888964,70.12549,175.18,175.17,14.2714]
[1730345890067,0.12549,175.15,175.13,24.30794036]
[1730345890465,70.0,175.14,175.13,14.2744]
[1730345890764,93.902374,175.14,175.13,14.2744]
[1730345890977,70.0,175.16,175.13,24.30794036]
[1730345891152,0.12549,175.17,175.15,10.03354036]
[1730345891474,0.12549,175.17,175.13,19.9844]
[1730345891679,0.12549,175.17,175.16,10.03354036]
[1730345892168,0.12549,175.17,175.16,15.74254036]
[1730345892353,0.12549,175.17,175.16,5.709]
[1730345893349,70.0,175.16,175.14,10.03354036]
[1730345893550,70.0,175.16,175.15,5.7093]
[1730345893741,70.12549,175.16,175.15,5.7093]
[1730345894765,70.12549,175.16,175.15,10.03354036]
[1730345895669,70.0,175.18,175.15,10.03354036]
[1730345895973,70.0,175.22,175.18,20.0]
[1730345896275,70.0,175.22,175.21,10.03354036]
[1730345896868,70.0,175.22,175.21,15.74094036]
[1730345897858,70.12549,175.22,175.21,15.74094036]
[1730345898354,70.0,175.24,175.21,30.00944036]
[1730345898557,70.0,175.24,175.23,15.84670151]
[1730345899652,70.12549,175.24,175.23,21.55340151]
[1730345900155,0.2,175.32,175.23,21.55340151]
[1730345900156,70.0,175.26,175.23,35.82030151]
[1730345900351,70.0,175.26,175.25,15.84670151]
[1730345901768,70.0,175.26,175.25,21.55280151]
[1730345903083,70.12549,175.26,175.25,21.55280151]
[1730345905173,70.12549,175.26,175.25,5.7061]
[1730345905570,70.12549,175.24,175.23,19.9736]
[1730345909159,70.0,175.22,175.21,15.84670151]
[1730345909357,70.12549,175.22,175.21,15.84670151]
[1730345910361,70.12549,175.22,175.21,21.55410151]
[1730345910564,0.12549,175.2,175.19,19.9779]
[1730345914279,70.0,175.21,175.19,19.9779]
[1730345914579,70.0,175.21,175.2,15.84670151]
[1730345915879,70.12549,175.21,175.2,15.84670151]
[1730345916461,70.12549,175.21,175.2,21.55440151]
[1730345919282,70.12549,175.21,175.19,15.84670151]
[1730345920365,70.12549,175.21,175.2,5.7077]
[1730345920670,0.12549,175.2,175.19,19.9778]
[1730345921453,70.0,175.18,175.12,0.2]
[1730345921689,70.12549,175.18,175.17,20.0]
[1730345922377,70.12549,175.18,175.17,25.7087]
[1730345924483,70.12549,175.18,175.17,35.85668529]
[1730345925579,70.12549,175.18,175.17,15.85668529]
[1730345928199,115.828284,175.11,175.06,13.04190595]
[1730345928358,115.828284,175.11,175.02,10.14798529]
[1730345928359,70.0,175.03,175.02,10.14798529]
[1730345928563,70.0,175.01,174.97,16.9922928]
[1730345929385,70.0,175.01,174.97,0.6007928]
[1730345929582,70.12549,175.01,175.0,15.86218529]
[1730345930680,70.12549,175.01,175.0,15.88265563]
[1730345932890,70.0,175.01,174.99,15.88265563]
[1730345933183,70.0,175.01,174.98,14.2873]
[1730345933184,70.12549,174.99,174.98,20.0022]
[1730345933390,70.12549,174.99,174.98,35.88485563]
[1730345933961,70.0,174.99,174.98,55.88485563]
[1730345934192,70.0,174.99,174.98,35.88485563]
[1730345936495,85.88265563,174.99,174.98,20.0022]
[1730345936679,70.0,174.99,174.98,20.0022]
[1730345940592,70.12549,174.99,174.98,20.0022]
[1730345942592,70.0,174.99,174.98,35.88485563]
[1730345942897,70.0,174.99,174.98,20.0022]
[1730345943086,70.0,174.99,174.98,35.88485563]
[1730345944572,0.12549,175.01,174.98,20.0022]
[1730345944791,70.0,175.0,174.98,20.0022]
[1730345944996,70.0,175.0,174.98,35.88485563]
[1730345945377,70.0,175.0,174.98,20.0022]
[1730345946895,85.88265563,175.0,174.98,20.0022]
[1730345950592,16.00814563,174.99,174.98,20.0022]
[1730345950900,0.12549,174.99,174.98,20.0022]
[1730345951783,70.0,175.0,174.98,20.0022]
[1730345954099,70.0,175.0,174.98,35.88485563]
[1730345955520,0.12549,174.99,174.98,20.0022]
[1730345960082,70.0,175.0,174.98,20.0022]
[1730345960496,0.12549,174.99,174.98,20.0022]
[1730345971209,23.902374,174.99,174.98,14.2873]
[1730345971395,23.902374,174.99,174.98,20.0022]
[1730345972595,0.12549,174.99,174.98,20.0022]
[1730345975201,34.07536755,174.99,174.98,14.2873]
[1730345975409,70.0,174.98,174.97,0.6007928]
[1730345975703,104.07536755,174.98,174.97,0.6007928]
[1730345976718,93.902374,174.98,174.97,0.6007928]
[1730345977208,104.07536755,174.98,174.97,0.6007928]
[1730345980420,70.0,174.98,174.97,6.3159928]
[1730345981921,70.12549,174.98,174.97,6.3159928]
[1730345982707,70.12549,174.98,174.97,16.48898635]
[1730345982901,70.0,175.0,174.97,30.77708635]
[1730345983210,70.0,175.0,174.99,10.17299355]
[1730345983916,70.0,175.0,174.99,15.88759355]
[1730345984306,70.12549,175.0,174.99,15.88759355]
[1730345985406,70.12549,175.0,174.99,5.7146]
[1730345985906,70.0,175.02,174.99,30.17409355]
[1730345986108,70.0,175.04,175.01,10.17299355]
[1730345986327,70.0,175.04,175.03,10.17299355]
[1730345987329,70.0,175.04,175.03,15.88629355]
[1730345987627,70.0,175.06,175.03,15.88629355]
[1730345987824,70.0,175.06,175.05,10.17299355]
[1730345988216,70.0,175.08,175.05,10.17299355]
[1730345988514,70.0,175.08,175.07,15.87566241]
[1730345989224,70.0,175.08,175.07,21.58766241]
[1730345989431,70.0,175.1,175.07,21.58766241]
[1730345989618,70.0,175.12,175.09,15.87566241]
[1730345989813,70.0,175.12,175.1,15.87566241]
[1730345990016,70.0,175.12,175.11,15.87566241]
[1730345990613,70.0,175.12,175.1,15.87566241]
[1730345991732,0.12549,175.11,175.1,14.2772]
[1730345992715,0.12549,175.11,175.1,19.9882]
[1730345995729,0.12549,175.11,175.1,15.87566241]
[1730345997215,0.12549,175.11,175.1,21.58666241]
[1730346005937,70.0,175.14,175.1,35.86416241]
[1730346006134,70.0,175.14,175.12,15.87566241]
[1730346006315,70.0,175.14,175.13,15.87566241]
[1730346006716,70.0,175.14,175.12,15.87566241]
[1730346007216,0.12549,175.13,175.12,15.87566241]
[1730346007526,0.12549,175.13,175.12,21.58596241]
[1730346007938,0.12549,175.13,175.12,5.7103]
[1730346010422,70.0,175.12,175.11,5.7106]
[1730346010834,70.12549,175.12,175.11,5.7106]
[1730346011553,0.12549,175.11,175.1,19.9885]
[1730346015441,70.0,175.08,175.05,10.15518906]
[1730346015624,0.12549,175.07,175.06,14.2801]
[1730346023932,16.2968,175.05,175.0,0.1]
[1730346024139,16.2968,175.05,174.7,650.5]
[1730346024140,0.1,174.81,174.7,650.5]
[1730346024352,0.1,174.81,174.6,40.62075624]
[1730346024353,71.51060011,174.81,174.64,10.25518906]
[1730346024556,70.12549,174.81,174.68,0.2]
[1730346024736,70.22549,174.81,174.69,0.1]
[1730346025058,70.22549,174.81,174.68,14.3111]
[1730346025237,90.53586812,174.81,174.66,0.1]
[1730346025433,121.1014353,174.81,174.64,0.1]
[1730346025635,121.1014353,174.81,174.64,5.7259]
[1730346025832,121.1014353,174.81,174.63,14.3155]
[1730346025833,131.99237967,174.81,174.63,14.3155]
[1730346026042,151.99237967,174.81,174.63,14.3155]
[1730346026247,141.1014353,174.81,174.8,0.93]
[1730346026556,141.1014353,174.81,174.67,0.1]
[1730346026557,20.22549,174.8,174.67,0.1]
[1730346026742,70.0,174.72,174.67,0.1]
[1730346026939,15.94516264,174.71,174.67,0.1]
[1730346027144,15.94516264,174.72,174.68,5.8247]
[1730346027350,70.0,174.73,174.68,0.1]
[1730346027738,85.94516264,174.73,174.66,5.7252]
[1730346027940,0.12549,174.72,174.66,5.7252]
[1730346028149,70.0,174.71,174.65,15.94516264]
[1730346028351,70.0,174.71,174.65,21.77076264]
[1730346029778,70.0,174.71,174.66,23.776884]
[1730346030661,70.0,174.68,174.63,35.98696264]
[1730346030965,70.0,174.68,174.63,20.0418]
[1730346031167,70.0,174.68,174.63,14.3155]
[1730346031461,0.12549,174.67,174.63,14.3155]
[1730346032845,0.12549,174.67,174.64,23.776884]
[1730346035463,0.12549,174.67,174.61,0.7007928]
[1730346035464,70.0,174.65,174.61,0.6007928]
[1730346036571,70.0,174.65,174.61,22.27285544]
[1730346036766,70.0,174.65,174.62,23.776884]
[1730346036943,70.0,174.65,174.62,39.72204664]
[1730346037148,70.0,174.65,174.62,23.776884]
[1730346038772,70.0,174.65,174.62,29.503484]
[1730346039878,0.12549,174.64,174.62,23.776884]
[1730346040447,70.12549,174.64,174.61,16.54595544]
[1730346041487,70.12549,174.64,174.61,0.6007928]
[1730346042376,70.0,174.67,174.64,23.776884]
[1730346042571,70.0,174.67,174.66,15.94516264]
[1730346042879,70.0,174.67,174.65,15.94516264]
[1730346043056,70.0,174.67,174.64,39.72204664]
[1730346043658,0.12549,174.66,174.64,39.72204664]
[1730346043969,0.12549,174.66,174.64,23.776884]
[1730346044176,0.12549,174.66,174.63,39.72204664]
[1730346045383,70.0,174.64,174.62,15.94516264]
[1730346045583,70.12549,174.66,174.62,21.67186264]
[1730346045877,70.0,174.68,174.65,23.776884]
[1730346046384,0.12549,174.67,174.65,23.776884]
[1730346046769,0.12549,174.67,174.64,23.776884]
[1730346047382,70.0,174.68,174.64,43.817784]
[1730346047553,0.12549,174.69,174.66,39.72204664]
[1730346047758,0.12549,174.69,174.66,23.776884]
[1730346048154,85.94516264,174.7,174.66,23.776884]
[1730346048579,15.94516264,174.69,174.65,23.776884]
[1730346048775,85.94516264,174.7,174.65,23.776884]
[1730346048983,85.94516264,174.7,174.65,39.72204664]
[1730346049184,70.0,174.7,174.67,23.776884]
[1730346049485,0.12549,174.69,174.67,23.776884]
[1730346049866,0.12549,174.69,174.67,29.501684]
[1730346050468,70.0,174.68,174.66,15.94516264]
[1730346050779,0.12549,174.69,174.67,39.72204664]
[1730346051180,0.12549,174.69,174.66,39.72204664]
[1730346051363,0.12549,174.69,174.66,45.44714664]
[1730346051973,0.12549,174.69,174.66,29.501984]
[1730346052555,0.12549,174.69,174.66,43.815484]
[1730346055585,70.12549,174.67,174.66,20.0386]
[1730346056587,70.0,174.67,174.66,20.0386]
[1730346057286,70.0,174.69,174.66,20.0386]
[1730346059184,70.0,174.69,174.66,35.98376264]
[1730346061290,70.0,174.74,174.7,20.0342]
[1730346061499,85.94516264,174.77,174.71,15.94516264]
[1730346061791,85.94516264,174.77,174.72,39.72204664]
[1730346062294,15.94516264,174.78,174.73,15.9585]
[1730346062492,15.94516264,174.78,174.74,23.776884]
[1730346062874,15.94516264,174.76,174.73,15.9585]
[1730346063487,15.94516264,174.76,174.74,20.0296]
[1730346064586,70.0,174.77,174.74,20.0296]
[1730346064587,85.94516264,174.77,174.74,20.0296]
[1730346064892,15.94516264,174.77,174.74,20.0296]
[1730346065099,15.94516264,174.78,174.74,20.0296]
[1730346065488,15.94516264,174.76,174.74,20.0296]
[1730346067994,15.94516264,174.75,174.74,20.0296]
[1730346069468,70.0,174.77,174.74,20.0296]
[1730346069469,15.94516264,174.76,174.74,20.0296]
[1730346070094,15.94516264,174.76,174.72,23.776884]
[1730346070272,15.94516264,174.75,174.72,23.776884]
[1730346070474,15.94516264,174.73,174.71,48.6519]
[1730346070977,15.94516264,174.72,174.71,48.6519]
[1730346071393,16.07065264,174.72,174.71,20.0331]
[1730346071776,70.0,174.71,174.68,14.3117]
[1730346071989,15.94516264,174.7,174.68,14.3117]
[1730346072192,86.07065264,174.69,174.68,14.3117]
[1730346073900,70.12549,174.69,174.68,14.3117]
[1730346074277,70.0,174.69,174.68,14.3117]
[1730346075703,70.12549,174.69,174.68,14.3117]
[1730346078584,70.0,174.69,174.68,30.25686264]
[1730346078779,70.0,174.69,174.68,14.3117]
[1730346079706,70.0,174.69,174.68,20.0364]
[1730346080402,70.12549,174.69,174.68,20.0364]
[1730346081610,70.12549,174.69,174.68,14.3117]
[1730346084094,0.1,174.77,174.68,14.3117]
[1730346084095,70.0,174.73,174.69,23.776884]
[1730346084294,70.0,174.73,174.71,15.94516264]
[1730346084510,70.0,174.73,174.72,10.20106561]
[1730346084886,70.0,174.73,174.71,10.20106561]
[1730346085211,70.0,174.73,174.71,20.0331]
[1730346085510,0.12549,174.72,174.71,20.0331]
[1730346087112,0.12549,174.72,174.71,14.3094]
[1730346089304,70.0,174.71,174.67,38.82646561]
[1730346089619,70.0,174.71,174.68,20.0365]
[1730346090612,70.0,174.69,174.68,20.0365]
[1730346091696,70.0,174.69,174.68,14.3118]
[1730346092716,70.0,174.71,174.68,24.51286561]
[1730346092916,70.0,174.71,174.69,10.20106561]
[1730346093228,70.0,174.74,174.69,10.20106561]
[1730346093415,70.0,174.74,174.7,10.20106561]
[1730346093787,70.0,174.81,174.74,0.1]
[1730346093998,70.0,174.83,174.79,10.20106561]
[1730346094195,70.0,174.83,174.8,10.20106561]
[1730346094415,70.0,174.83,174.76,0.1]
[1730346094596,70.0,174.83,174.8,15.92365809]
[1730346094807,70.0,174.83,174.79,15.92365809]
[1730346095216,70.0,174.83,174.78,15.92365809]
[1730346095409,85.92365809,174.83,174.77,15.92365809]
[1730346095600,85.92365809,174.83,174.78,23.776884]
[1730346095994,85.92365809,174.83,174.79,20.0239]
[1730346096415,70.0,174.81,174.79,20.0239]
[1730346097908,70.0,174.83,174.79,35.94755809]
[1730346098419,70.0,174.83,174.79,20.0239]
[1730346099407,70.0,174.83,174.79,35.94755809]
[1730346100402,70.0,174.83,174.79,20.0239]
[1730346100606,85.92365809,174.83,174.79,20.0239]
[1730346101214,70.0,174.83,174.79,20.0239]
[1730346101401,70.0,174.83,174.79,35.94755809]
[1730346102016,70.0,174.83,174.79,20.0239]
[1730346102403,0.12549,174.82,174.79,20.0239]
[1730346102605,70.0,174.81,174.79,20.0239]
[1730346103498,0.12549,174.82,174.79,20.0239]
[1730346103699,0.12549,174.82,174.79,35.94755809]
[1730346104032,0.12549,174.82,174.79,20.0239]
[1730346105027,70.0,174.81,174.79,20.0239]
[1730346105525,0.12549,174.77,174.76,14.3051]
[1730346105822,0.12549,174.77,174.76,20.0272]
[1730346106719,0.12549,174.77,174.76,14.3051]
[1730346106922,0.12549,174.77,174.76,30.22875809]
[1730346107304,0.12549,174.77,174.76,14.3051]
[1730346108427,0.12549,174.77,174.76,20.0272]
[1730346109329,70.0,174.82,174.77,23.776884]
[1730346109521,70.0,174.85,174.81,15.92365809]
[1730346109725,70.0,174.85,174.78,16.02365809]
[1730346109726,70.0,174.85,174.84,15.92365809]
[1730346109929,70.0,174.85,174.83,15.92365809]
[1730346110405,70.0,174.85,174.84,5.7195]
[1730346112005,70.12549,174.85,174.84,5.7195]
[1730346112205,70.12549,174.85,174.83,20.0191]
[1730346112711,70.0,174.85,174.84,23.776884]
[1730346113809,70.0,174.85,174.84,29.496384]
[1730346114701,70.0,174.89,174.84,59.71874209]
[1730346114902,70.0,174.9,174.88,23.776884]
[1730346115120,70.0,174.88,174.86,23.776884]
[1730346115526,70.0,174.86,174.84,20.0182]
[1730346116930,70.0,174.86,174.84,14.2987]
[1730346118038,15.92365809,174.88,174.84,14.2987]
[1730346118246,15.92365809,174.95,174.89,22.3283]
[1730346118418,70.0,174.98,174.95,23.776884]
[1730346118735,70.0,174.98,174.95,39.70054209]
[1730346119343,70.0,174.98,174.95,23.776884]
[1730346119870,85.92365809,174.96,174.91,15.92365809]
[1730346120148,70.0,174.96,174.92,20.009]
[1730346120334,70.0,174.96,174.93,23.776884]
[1730346120530,70.0,174.96,174.92,20.009]
[1730346120739,70.0,174.96,174.93,23.776884]
[1730346121437,0.12549,174.95,174.93,39.70054209]
[1730346121740,0.12549,174.95,174.94,15.92365809]
[1730346121939,0.12549,174.95,174.94,21.63985809]
[1730346122330,0.12549,174.97,174.94,35.93045809]
[1730346123038,0.12549,174.97,174.95,15.92365809]
[1730346123729,0.12549,174.97,174.94,30.21425809]
[1730346123929,0.12549,174.97,174.95,5.7156]
[1730346124139,70.0,174.96,174.95,5.7156]
[1730346124339,70.12549,174.96,174.95,5.7156]
[1730346124856,70.0,174.96,174.94,14.2906]
[1730346125034,0.12549,174.95,174.94,14.2906]
[1730346125441,70.0,174.92,174.9,20.0108]
[1730346125640,70.0,174.92,174.9,35.93445809]
[1730346127454,0.12549,174.91,174.9,20.0108]
[1730346128342,0.12549,174.91,174.9,14.2936]
[1730346129362,70.0,174.9,174.88,28.5903]
[1730346130545,70.0,174.88,174.87,20.0148]
[1730346130747,70.12549,174.88,174.87,20.0148]
[1730346131355,70.12549,174.88,174.87,14.2963]
[1730346135435,0.1,174.94,174.85,5.7191]
[1730346135436,70.0,174.86,174.85,5.7191]
[1730346135637,70.12549,174.86,174.85,5.7191]
[1730346137238,70.12549,174.86,174.85,21.64275809]
[1730346138554,70.0,174.86,174.84,30.124]
[1730346138752,85.92365809,174.88,174.85,23.776884]
[1730346138955,70.0,174.86,174.85,23.776884]
[1730346139130,70.0,174.86,174.84,20.0182]
[1730346139547,70.0,174.86,174.84,14.2987]
[1730346139747,15.92365809,174.85,174.84,14.2987]
[1730346140154,70.12549,174.84,174.83,5.7198]
[1730346140341,70.12549,174.84,174.81,20.0216]
[1730346145462,70.0,174.82,174.81,14.3012]
[1730346145654,70.12549,174.82,174.81,14.3012]
[1730346145961,15.92365809,174.83,174.79,5.7208]
[1730346145962,70.12549,174.8,174.79,5.7208]
[1730346146749,70.0,174.78,174.76,15.92365809]
[1730346147065,70.0,174.78,174.76,5.7221]
[1730346147457,70.0,174.78,174.76,20.0274]
[1730346148452,0.12549,174.77,174.76,20.0274]
[1730346149548,0.12549,174.77,174.76,14.3053]
[1730346149860,0.12549,174.77,174.74,15.92365809]
[1730346149861,70.0,174.76,174.74,23.776884]
[1730346150449,70.12549,174.74,174.73,14.3075]
[1730346150655,70.12549,174.74,174.73,30.23115809]
[1730346150844,70.0,174.76,174.73,30.23115809]
[1730346151044,0.12549,174.77,174.75,15.92365809]
[1730346151768,0.12549,174.77,174.76,5.7221]
[1730346152665,0.12549,174.77,174.74,15.92365809]
[1730346152872,0.12549,174.77,174.75,23.776884]
[1730346154257,0.12549,174.77,174.75,43.805384]
[1730346155464,70.12549,174.76,174.75,20.0285]
[1730346156350,70.12549,174.76,174.75,14.3061]
[1730346159261,70.12549,174.76,174.75,30.22975809]
[1730346159655,70.12549,174.76,174.75,35.95215809]
[1730346159960,0.12549,174.76,174.75,35.95215809]
[1730346162874,70.12549,174.76,174.74,15.92365809]
[1730346163252,70.0,174.78,174.74,15.92365809]
[1730346163447,0.12549,174.77,174.74,15.92365809]
[1730346163674,0.12549,174.77,174.75,15.92365809]
[1730346164274,0.12549,174.77,174.76,5.7221]
[1730346164775,70.0,174.76,174.74,5.7225]
[1730346165376,70.0,174.76,174.74,15.92051697]
[1730346165880,0.12549,174.77,174.75,10.19801697]
[1730346166381,0.12549,174.77,174.76,10.19801697]
[1730346167458,0.12549,174.77,174.76,15.92011697]
[1730346168082,0.12549,174.77,174.76,5.7221]
[1730346168273,70.0,174.76,174.74,14.3069]
[1730346168461,70.0,174.78,174.75,23.776884]
[1730346168671,0.12549,174.79,174.76,10.19801697]
[1730346168971,0.12549,174.79,174.77,10.19801697]
[1730346169179,70.0,174.8,174.77,10.19801697]
[1730346169376,40.79206788,174.87,174.75,23.776884]
[1730346169377,70.0,174.82,174.78,10.19801697]
[1730346170279,70.0,174.79,174.76,45.79511697]
[1730346170463,70.0,174.79,174.76,35.5971]
[1730346173673,70.0,174.81,174.77,10.19801697]
[1730346173880,0.12549,174.8,174.78,10.19801697]
[1730346175474,70.0,174.85,174.8,20.0228]
[1730346175678,70.0,174.85,174.8,30.22081697]
[1730346176358,70.0,174.85,174.81,10.19801697]
[1730346176562,70.0,174.85,174.83,15.92309046]
[1730346176985,70.0,174.87,174.83,15.92309046]
[1730346177481,70.0,174.87,174.84,5.7195]
[1730346177790,70.12549,174.85,174.84,5.7195]
[1730346178091,0.12549,174.85,174.84,5.7195]
[1730346178675,70.12549,174.85,174.84,5.7195]
[1730346179673,70.12549,174.85,174.83,14.2989]
[1730346181577,85.92309046,174.87,174.83,14.2989]
[1730346181779,70.0,174.85,174.83,14.2989]
[1730346183903,85.92309046,174.87,174.83,14.2989]
[1730346184198,0.12549,174.86,174.83,14.2989]
[1730346184403,70.0,174.87,174.85,20.017]
[1730346185097,70.0,174.9,174.86,23.776884]
[1730346185287,85.92309046,174.9,174.86,23.776884]
[1730346185473,15.92309046,174.89,174.86,23.776884]
[1730346185873,85.92309046,174.9,174.86,23.776884]
[1730346186098,70.0,174.88,174.85,20.017]
[1730346187599,70.0,174.85,174.82,14.3001]
[1730346187892,85.92309046,174.83,174.8,15.3423]
[1730346188108,16.04858046,174.82,174.79,20.0235]
[1730346189193,16.04858046,174.82,174.79,14.3026]
[1730346191597,0.12549,174.82,174.79,14.3026]
[1730346191797,70.0,174.83,174.79,14.3026]
[1730346192379,0.12549,174.82,174.79,14.3026]
[1730346193503,0.12549,174.82,174.79,20.0237]
[1730346194104,15.92309046,174.84,174.79,20.0237]
[1730346195883,70.0,174.82,174.79,14.3026]
[1730346197008,70.0,174.82,174.79,20.0237]
[1730346199794,80.19484664,174.8,174.76,21.6612]
[1730346200111,70.0,174.82,174.77,10.19484664]
[1730346200497,70.0,174.82,174.78,10.19484664]
[1730346200882,70.0,174.82,174.77,10.19484664]
[1730346201088,70.0,174.82,174.78,10.19484664]
[1730346201292,70.0,174.82,174.79,23.776884]
[1730346201804,70.0,174.82,174.8,20.0228]
[1730346204722,80.19484664,174.82,174.8,20.0228]
[1730346205213,80.19484664,174.82,174.8,14.302]
[1730346205516,70.0,174.8,174.77,5.7218]
[1730346205700,80.19484664,174.8,174.77,5.7218]
[1730346206314,70.0,174.78,174.76,5.7221]
[1730346206617,70.0,174.78,174.76,20.0274]
[1730346207918,70.0,174.8,174.76,30.22224664]
[1730346208117,70.0,174.8,174.77,33.97173064]
[1730346208325,70.0,174.82,174.78,10.19484664]
[1730346208523,70.0,174.82,174.79,10.19484664]
[1730346209523,70.0,174.82,174.8,20.0228]
[1730346211225,70.0,174.82,174.8,14.302]
[1730346211796,10.19484664,174.81,174.8,14.302]
[1730346212396,10.19484664,174.81,174.75,14.3054]
[1730346212397,70.0,174.77,174.75,14.3054]
[1730346212615,70.0,174.79,174.75,14.3054]
[1730346213525,70.0,174.79,174.75,30.22264664]